[Event "*** Titled Tuesday Blitz"]
[Site "Chess.com"]
[Date "2020.04.28"]
[Round "4"]
[White "putra48"]
[Black "MichailovM"]
[Result "1-0"]
[WhiteElo "2610"]
[BlackElo "2372"]
[TimeControl "180+1"]
[EndTime "10:41:06 PDT"]
[Termination "putra48 won by resignation"]

1. e4 {[%clk 0:03:00]} 1... c5 {[%clk 0:02:59.2]} 2. Nf3 {[%clk 0:03:00]} 2...
d6 {[%clk 0:02:59.8]} 3. d4 {[%clk 0:03:00]} 3... cxd4 {[%clk 0:03:00.7]} 4.
Nxd4 {[%clk 0:03:00.2]} 4... Nf6 {[%clk 0:03:01.4]} 5. Nc3 {[%clk 0:03:00.3]}
5... g6 {[%clk 0:03:02.1]} 6. Be3 {[%clk 0:02:56.5]} 6... Bg7 {[%clk 0:03:01]}
7. f3 {[%clk 0:02:54.2]} 7... O-O {[%clk 0:03:01]} 8. Bc4 {[%clk 0:02:49.7]}
8... Nc6 {[%clk 0:03:01.2]} 9. Bb3 {[%clk 0:02:45.8]} 9... Bd7 {[%clk 0:02:58]}
10. Qd2 {[%clk 0:02:45.5]} 10... Rc8 {[%clk 0:02:56.8]} 11. O-O-O {[%clk
0:02:40.7]} 11... Ne5 {[%clk 0:02:56.8]} 12. Kb1 {[%clk 0:02:40.7]} 12... Nc4
{[%clk 0:02:55.3]} 13. Bxc4 {[%clk 0:02:41.2]} 13... Rxc4 {[%clk 0:02:56.2]} 14.
g4 {[%clk 0:02:42.1]} 14... b5 {[%clk 0:02:56.1]} 15. b3 {[%clk 0:02:40.1]}
15... b4 {[%clk 0:02:56.3]} 16. bxc4 {[%clk 0:02:40.2]} 16... bxc3 {[%clk
0:02:56.4]} 17. Qxc3 {[%clk 0:02:41.1]} 17... Qc7 {[%clk 0:02:56.9]} 18. Kc1
{[%clk 0:02:37.6]} 18... Rc8 {[%clk 0:02:56]} 19. h4 {[%clk 0:02:37.3]} 19... h5
{[%clk 0:02:55.3]} 20. gxh5 {[%clk 0:02:30.9]} 20... Nxh5 {[%clk 0:02:54.6]} 21.
Kd2 {[%clk 0:02:26.8]} 21... Be6 {[%clk 0:02:39.4]} 22. Rhg1 {[%clk 0:02:20.3]}
22... Bxc4 {[%clk 0:02:35.8]} 23. Rb1 {[%clk 0:01:53.9]} 23... d5 {[%clk
0:02:11.7]} 24. exd5 {[%clk 0:01:26.7]} 24... Qh2+ {[%clk 0:01:56.3]} 25. Kc1
{[%clk 0:01:17.8]} 25... Nf6 {[%clk 0:01:45.8]} 26. Qd2 {[%clk 0:00:25.8]} 26...
Qxh4 {[%clk 0:01:44.6]} 27. Nf5 {[%clk 0:00:16.3]} 27... gxf5 {[%clk 0:01:06.9]}
28. Bh6 {[%clk 0:00:16.1]} 28... Ne8 {[%clk 0:01:07.2]} 29. Rb4 {[%clk
0:00:15.5]} 29... Kh7 {[%clk 0:00:50.5]} 30. Bg5 {[%clk 0:00:11.8]} 30... Qd4
{[%clk 0:00:45.1]} 31. Rh1+ {[%clk 0:00:08.9]} 31... Kg8 {[%clk 0:00:45.1]} 32.
Qh2 {[%clk 0:00:08.9]} 32... Kf8 {[%clk 0:00:27.4]} 33. Bh6 {[%clk 0:00:08]}
33... Qc3 {[%clk 0:00:09.2]} 34. Bxg7+ {[%clk 0:00:07.5]} 34... Kxg7 {[%clk
0:00:08.6]} 35. Rg1+ {[%clk 0:00:06.8]} 35... Kf6 {[%clk 0:00:09]} 36. Qh8+
{[%clk 0:00:07.2]} 1-0

[Event "*** Titled Tuesday Blitz"]
[Site "Chess.com"]
[Date "2020.04.28"]
[Round "4"]
[White "chessfrendz"]
[Black "korbul"]
[Result "1-0"]
[WhiteElo "2429"]
[BlackElo "2591"]
[TimeControl "180+1"]
[EndTime "10:41:09 PDT"]
[Termination "chessfrendz won by resignation"]

1. d4 {[%clk 0:02:59.3]} 1... Nf6 {[%clk 0:02:59.4]} 2. c4 {[%clk 0:02:58.7]}
2... e6 {[%clk 0:02:59.6]} 3. Nc3 {[%clk 0:02:59.2]} 3... Bb4 {[%clk 0:02:59.5]}
4. e3 {[%clk 0:02:59.8]} 4... b6 {[%clk 0:02:57.6]} 5. Bd3 {[%clk 0:03:00.1]}
5... Bb7 {[%clk 0:02:56.5]} 6. Nf3 {[%clk 0:03:00.1]} 6... Ne4 {[%clk
0:02:56.4]} 7. O-O {[%clk 0:02:58.6]} 7... f5 {[%clk 0:02:56.4]} 8. Ne2 {[%clk
0:02:56.2]} 8... Bd6 {[%clk 0:02:52.3]} 9. Ng3 {[%clk 0:02:52.8]} 9... Bxg3
{[%clk 0:02:51.8]} 10. fxg3 {[%clk 0:02:51.8]} 10... O-O {[%clk 0:02:51.5]} 11.
b3 {[%clk 0:02:48]} 11... d6 {[%clk 0:02:51.5]} 12. Qe1 {[%clk 0:02:45.5]} 12...
Nd7 {[%clk 0:02:50.7]} 13. Bb2 {[%clk 0:02:45]} 13... Ndf6 {[%clk 0:02:50.2]}
14. Rd1 {[%clk 0:02:43.9]} 14... Qe7 {[%clk 0:02:49.6]} 15. Nd2 {[%clk
0:02:36.9]} 15... Nxd2 {[%clk 0:02:44]} 16. Qxd2 {[%clk 0:02:34.8]} 16... Ne4
{[%clk 0:02:44.9]} 17. Bxe4 {[%clk 0:02:34]} 17... Bxe4 {[%clk 0:02:43.4]} 18.
Qf2 {[%clk 0:02:26.4]} 18... a5 {[%clk 0:02:42.1]} 19. a3 {[%clk 0:02:12.3]}
19... a4 {[%clk 0:02:39]} 20. b4 {[%clk 0:02:11.3]} 20... d5 {[%clk 0:02:36.9]}
21. c5 {[%clk 0:02:03.4]} 21... b5 {[%clk 0:02:36.1]} 22. Qf4 {[%clk 0:02:00.2]}
22... g5 {[%clk 0:02:24.9]} 23. Qe5 {[%clk 0:01:59.4]} 23... Rae8 {[%clk
0:02:23.4]} 24. Rd2 {[%clk 0:01:57.8]} 24... Qg7 {[%clk 0:02:21.2]} 25. Qxg7+
{[%clk 0:01:56.4]} 25... Kxg7 {[%clk 0:02:20.8]} 26. Rdf2 {[%clk 0:01:55.7]}
26... g4 {[%clk 0:02:12.7]} 27. h4 {[%clk 0:01:50.1]} 27... gxh3 {[%clk
0:02:11.4]} 28. gxh3 {[%clk 0:01:49.4]} 28... Rf6 {[%clk 0:02:11.1]} 29. Kh2
{[%clk 0:01:49.2]} 29... Rg6 {[%clk 0:02:09.3]} 30. Rg1 {[%clk 0:01:44.7]} 30...
Rg8 {[%clk 0:02:05.7]} 31. Rf4 {[%clk 0:01:42.9]} 31... h5 {[%clk 0:02:00]} 32.
Bc3 {[%clk 0:01:41.8]} 32... Kh6 {[%clk 0:01:59.4]} 33. h4 {[%clk 0:01:33.5]}
33... Rg4 {[%clk 0:01:56.4]} 34. Rxg4 {[%clk 0:01:31.9]} 34... hxg4 {[%clk
0:01:53.1]} 35. Rf1 {[%clk 0:01:31]} 35... Kh5 {[%clk 0:01:49.5]} 36. Rf2 {[%clk
0:01:30.2]} 36... Rg6 {[%clk 0:01:47.9]} 37. Bb2 {[%clk 0:01:26.4]} 37... Bf3
{[%clk 0:01:38.2]} 38. Bc3 {[%clk 0:01:25.4]} 38... Rg8 {[%clk 0:01:37.3]} 39.
Bb2 {[%clk 0:01:24.2]} 39... Kg6 {[%clk 0:01:35.8]} 40. Bc3 {[%clk 0:01:23.6]}
40... Rh8 {[%clk 0:01:35.6]} 41. Bb2 {[%clk 0:01:22.7]} 41... Rh6 {[%clk
0:01:31.8]} 42. Bc3 {[%clk 0:01:22.5]} 42... f4 {[%clk 0:01:30.4]} 43. exf4
{[%clk 0:01:21]} 43... Kf5 {[%clk 0:01:30.6]} 44. Bd2 {[%clk 0:01:12.3]} 44...
Rg6 {[%clk 0:01:23.8]} 45. Rf1 {[%clk 0:01:09.5]} 45... Ke4 {[%clk 0:01:23.9]}
46. Bc3 {[%clk 0:01:04.4]} 46... Kd3 {[%clk 0:01:23.7]} 47. Bb2 {[%clk
0:01:03.7]} 47... Kc2 {[%clk 0:01:21.3]} 48. Rf2+ {[%clk 0:01:00.2]} 48... Kb3
{[%clk 0:01:19.4]} 49. Kg1 {[%clk 0:00:59.5]} 49... Rh6 {[%clk 0:01:13.9]} 50.
Kf1 {[%clk 0:00:59.4]} 50... Rh5 {[%clk 0:01:13.2]} 51. Ke1 {[%clk 0:00:59.4]}
51... c6 {[%clk 0:01:12.2]} 52. Rd2 {[%clk 0:00:57.7]} 52... Be4 {[%clk
0:01:11.1]} 53. Kf2 {[%clk 0:00:57.2]} 53... Bc2 {[%clk 0:01:07.9]} 54. Bc1
{[%clk 0:00:55.6]} 54... Kc3 {[%clk 0:01:07.8]} 55. Ke3 {[%clk 0:00:55.1]} 55...
Be4 {[%clk 0:01:05.5]} 56. Rf2 {[%clk 0:00:51.6]} 56... Bf5 {[%clk 0:01:05.2]}
57. Rb2 {[%clk 0:00:49.4]} 57... e5 {[%clk 0:01:03.7]} 58. fxe5 {[%clk
0:00:47.6]} 58... Be4 {[%clk 0:01:03.5]} 59. Rf2 {[%clk 0:00:46.5]} 59... Bf3
{[%clk 0:01:03.2]} 60. Kf4 {[%clk 0:00:38]} 60... Kxd4 {[%clk 0:01:00.5]} 61.
Bb2+ {[%clk 0:00:36.8]} 61... Kd3 {[%clk 0:00:58.7]} 62. e6 {[%clk 0:00:36.4]}
62... d4 {[%clk 0:00:53.3]} 63. e7 {[%clk 0:00:32.3]} 63... Rh8 {[%clk
0:00:52.2]} 64. Ke5 {[%clk 0:00:29.5]} 64... Ke3 {[%clk 0:00:50.7]} 65. Bxd4+
{[%clk 0:00:28.2]} 65... Kd3 {[%clk 0:00:49.6]} 66. Bb2 {[%clk 0:00:27.6]} 66...
Ke3 {[%clk 0:00:46.6]} 67. Rh2 {[%clk 0:00:26.3]} 67... Bd5 {[%clk 0:00:45.2]}
68. Kd6 {[%clk 0:00:25.7]} 68... Kf3 {[%clk 0:00:44]} 69. Bxh8 {[%clk
0:00:24.5]} 1-0

[Event "*** Titled Tuesday Blitz"]
[Site "Chess.com"]
[Date "2020.04.28"]
[Round "4"]
[White "svilson23"]
[Black "Chessmatus"]
[Result "1-0"]
[WhiteElo "2222"]
[BlackElo "2334"]
[TimeControl "180+1"]
[EndTime "10:41:09 PDT"]
[Termination "svilson23 won by resignation"]

1. d4 {[%clk 0:03:00.9]} 1... Nf6 {[%clk 0:02:59.6]} 2. Bg5 {[%clk 0:03:01.4]}
2... Ne4 {[%clk 0:02:59.2]} 3. Bf4 {[%clk 0:03:01.9]} 3... c5 {[%clk 0:02:59.3]}
4. d5 {[%clk 0:02:59.6]} 4... Qb6 {[%clk 0:02:54.8]} 5. Nc3 {[%clk 0:02:46]}
5... Qxb2 {[%clk 0:02:52.3]} 6. Nxe4 {[%clk 0:02:45.5]} 6... Qb4+ {[%clk
0:02:52.3]} 7. Qd2 {[%clk 0:02:30.9]} 7... Qxe4 {[%clk 0:02:51.9]} 8. f3 {[%clk
0:02:31.4]} 8... Qa4 {[%clk 0:02:37.7]} 9. e4 {[%clk 0:02:30.2]} 9... d6 {[%clk
0:02:35.2]} 10. Ne2 {[%clk 0:02:25.4]} 10... a6 {[%clk 0:02:32.5]} 11. Nc3
{[%clk 0:02:26.3]} 11... Qd7 {[%clk 0:02:32.2]} 12. a4 {[%clk 0:02:26.7]} 12...
g6 {[%clk 0:02:24.1]} 13. a5 {[%clk 0:02:26.3]} 13... Bg7 {[%clk 0:02:24]} 14.
Bc4 {[%clk 0:02:26.8]} 14... O-O {[%clk 0:02:21.8]} 15. O-O {[%clk 0:02:27.3]}
15... Qc7 {[%clk 0:02:19.7]} 16. Kh1 {[%clk 0:02:26.6]} 16... Nd7 {[%clk
0:02:19.9]} 17. Bh6 {[%clk 0:02:16.9]} 17... b5 {[%clk 0:02:09.5]} 18. Bxg7
{[%clk 0:02:10.9]} 18... Kxg7 {[%clk 0:02:08.5]} 19. Be2 {[%clk 0:02:08.1]}
19... f5 {[%clk 0:01:35.1]} 20. exf5 {[%clk 0:01:55.6]} 20... Rxf5 {[%clk
0:01:30.5]} 21. Ne4 {[%clk 0:01:54.1]} 21... Nf6 {[%clk 0:01:22.2]} 22. c4
{[%clk 0:01:49.2]} 22... b4 {[%clk 0:01:05.1]} 23. Ng3 {[%clk 0:01:45.4]} 23...
Bd7 {[%clk 0:00:36.8]} 24. Nxf5+ {[%clk 0:01:43.2]} 24... Bxf5 {[%clk
0:00:37.7]} 25. g4 {[%clk 0:01:35.8]} 25... Bd7 {[%clk 0:00:36]} 26. Bd1 {[%clk
0:01:29.9]} 26... Rf8 {[%clk 0:00:35]} 27. Bc2 {[%clk 0:01:19.6]} 27... e5
{[%clk 0:00:20.1]} 28. Kg2 {[%clk 0:01:17.3]} 28... Qd8 {[%clk 0:00:17.7]} 29.
Qg5 {[%clk 0:01:07.3]} 29... Qe7 {[%clk 0:00:16.1]} 30. h4 {[%clk 0:01:05.3]}
30... Qf7 {[%clk 0:00:11.2]} 31. h5 {[%clk 0:01:01.5]} 31... h6 {[%clk
0:00:11.4]} 32. Qxg6+ {[%clk 0:00:56.3]} 32... Qxg6 {[%clk 0:00:11.6]} 33. hxg6
{[%clk 0:00:53]} 33... Be8 {[%clk 0:00:07.8]} 34. Rh1 {[%clk 0:00:45.5]} 34...
Bxg6 {[%clk 0:00:08.2]} 35. Bxg6 {[%clk 0:00:45.2]} 35... Kxg6 {[%clk
0:00:09.1]} 36. Rh2 {[%clk 0:00:40.1]} 36... Rh8 {[%clk 0:00:09.4]} 37. Kg3
{[%clk 0:00:36.3]} 37... Kg5 {[%clk 0:00:09.5]} 38. Rah1 {[%clk 0:00:33.9]}
38... Rh7 {[%clk 0:00:08]} 39. Re2 {[%clk 0:00:29]} 39... Kg6 {[%clk 0:00:07.9]}
40. Rhh2 {[%clk 0:00:26.7]} 40... Rf7 {[%clk 0:00:07.5]} 41. Rhf2 {[%clk
0:00:24.6]} 41... Nh7 {[%clk 0:00:03.8]} 42. f4 {[%clk 0:00:23.7]} 42... exf4+
{[%clk 0:00:04.2]} 43. Rxf4 {[%clk 0:00:24.2]} 43... Rxf4 {[%clk 0:00:04.6]} 44.
Kxf4 {[%clk 0:00:24.7]} 44... Nf6 {[%clk 0:00:04.2]} 45. Re6 {[%clk 0:00:24.2]}
45... Kf7 {[%clk 0:00:03.6]} 46. Rxd6 {[%clk 0:00:22.9]} 46... Ne8 {[%clk
0:00:03]} 47. Rxa6 {[%clk 0:00:20.6]} 47... Ke7 {[%clk 0:00:03.5]} 48. Rb6
{[%clk 0:00:20.6]} 48... Nd6 {[%clk 0:00:03.1]} 49. a6 {[%clk 0:00:20.5]} 49...
Nxc4 {[%clk 0:00:03.5]} 50. Rb7+ {[%clk 0:00:20.5]} 50... Kd6 {[%clk 0:00:03.9]}
51. a7 {[%clk 0:00:20.7]} 1-0

[Event "*** Titled Tuesday Blitz"]
[Site "Chess.com"]
[Date "2020.04.28"]
[Round "4"]
[White "dpopadic"]
[Black "yoolund"]
[Result "1-0"]
[WhiteElo "2339"]
[BlackElo "2528"]
[TimeControl "180+1"]
[EndTime "10:41:10 PDT"]
[Termination "dpopadic won on time"]

1. e4 {[%clk 0:03:00.9]} 1... c6 {[%clk 0:02:59.7]} 2. d4 {[%clk 0:03:00.2]}
2... d5 {[%clk 0:02:59.2]} 3. Nd2 {[%clk 0:03:00.8]} 3... dxe4 {[%clk
0:02:58.7]} 4. Nxe4 {[%clk 0:03:01.1]} 4... Nd7 {[%clk 0:02:58.4]} 5. Qe2 {[%clk
0:02:57.4]} 5... e6 {[%clk 0:02:57.2]} 6. Nf3 {[%clk 0:02:55.7]} 6... Ngf6
{[%clk 0:02:55.5]} 7. Bd2 {[%clk 0:02:50]} 7... Be7 {[%clk 0:02:39.8]} 8. O-O-O
{[%clk 0:02:48.9]} 8... O-O {[%clk 0:02:20.4]} 9. g4 {[%clk 0:02:48.3]} 9... c5
{[%clk 0:02:10.9]} 10. Nxc5 {[%clk 0:02:36.8]} 10... Nxc5 {[%clk 0:02:07.1]} 11.
dxc5 {[%clk 0:02:36.8]} 11... Qc7 {[%clk 0:02:03.6]} 12. g5 {[%clk 0:02:30.8]}
12... Nd7 {[%clk 0:01:57]} 13. h4 {[%clk 0:02:21.5]} 13... Nxc5 {[%clk
0:01:53.2]} 14. Bg2 {[%clk 0:02:21.4]} 14... b6 {[%clk 0:01:51]} 15. Ne5 {[%clk
0:02:13.5]} 15... Bb7 {[%clk 0:01:44.1]} 16. Bxb7 {[%clk 0:02:12.7]} 16... Qxb7
{[%clk 0:01:42.1]} 17. Be3 {[%clk 0:02:03.7]} 17... Qe4 {[%clk 0:01:33.7]} 18.
Nd3 {[%clk 0:01:49]} 18... Rac8 {[%clk 0:01:25.8]} 19. f3 {[%clk 0:01:42.7]}
19... Nxd3+ {[%clk 0:01:14.6]} 20. Rxd3 {[%clk 0:01:33.5]} 20... Qc4 {[%clk
0:01:01.7]} 21. Kb1 {[%clk 0:01:28.4]} 21... Rcd8 {[%clk 0:00:52.6]} 22. h5
{[%clk 0:01:25.2]} 22... Rd5 {[%clk 0:00:42.6]} 23. b3 {[%clk 0:01:18.3]} 23...
Qa6 {[%clk 0:00:38.5]} 24. f4 {[%clk 0:01:07.1]} 24... Rfd8 {[%clk 0:00:36.9]}
25. Rhd1 {[%clk 0:01:07]} 25... Rxd3 {[%clk 0:00:35.2]} 26. Rxd3 {[%clk
0:01:06.6]} 26... Rxd3 {[%clk 0:00:34.9]} 27. Qxd3 {[%clk 0:01:06.7]} 27... Qxd3
{[%clk 0:00:34.3]} 28. cxd3 {[%clk 0:01:06.2]} 28... f6 {[%clk 0:00:28]} 29. Kc2
{[%clk 0:00:51]} 29... fxg5 {[%clk 0:00:26.3]} 30. fxg5 {[%clk 0:00:50.6]} 30...
Kf7 {[%clk 0:00:26.6]} 31. a4 {[%clk 0:00:47]} 31... Ke8 {[%clk 0:00:24.3]} 32.
Kc3 {[%clk 0:00:46.3]} 32... Kd7 {[%clk 0:00:22.8]} 33. Kc4 {[%clk 0:00:46.2]}
33... Kc6 {[%clk 0:00:22.3]} 34. g6 {[%clk 0:00:44.3]} 34... hxg6 {[%clk
0:00:20.2]} 35. hxg6 {[%clk 0:00:44.3]} 35... a6 {[%clk 0:00:18.7]} 36. Bd4
{[%clk 0:00:40.6]} 36... b5+ {[%clk 0:00:18.8]} 37. axb5+ {[%clk 0:00:40.2]}
37... axb5+ {[%clk 0:00:19.7]} 38. Kc3 {[%clk 0:00:40.2]} 38... Bf8 {[%clk
0:00:19.5]} 39. Kd2 {[%clk 0:00:35]} 39... Kd5 {[%clk 0:00:19.3]} 40. Bc3 {[%clk
0:00:34.2]} 40... e5 {[%clk 0:00:19.1]} 41. Ke3 {[%clk 0:00:32.2]} 41... Bc5+
{[%clk 0:00:15.5]} 42. Kf3 {[%clk 0:00:32.2]} 42... Bf8 {[%clk 0:00:09]} 43. Kg4
{[%clk 0:00:30.9]} 43... e4 {[%clk 0:00:07.6]} 44. dxe4+ {[%clk 0:00:29.4]}
44... Kxe4 {[%clk 0:00:08.5]} 45. Bb2 {[%clk 0:00:24.7]} 45... Kd3 {[%clk
0:00:08.1]} 46. Be5 {[%clk 0:00:21.3]} 46... Kc2 {[%clk 0:00:05.8]} 47. b4
{[%clk 0:00:20.5]} 47... Kb3 {[%clk 0:00:05.7]} 48. Kf5 {[%clk 0:00:21]} 48...
Kxb4 {[%clk 0:00:05.4]} 49. Ke6 {[%clk 0:00:21.6]} 49... Kc4 {[%clk 0:00:05.3]}
50. Kf7 {[%clk 0:00:21.3]} 50... Bc5 {[%clk 0:00:05.1]} 51. Kxg7 {[%clk
0:00:20.4]} 51... Be3 {[%clk 0:00:03.4]} 52. Kh7 {[%clk 0:00:19.6]} 1-0

[Event "*** Titled Tuesday Blitz"]
[Site "Chess.com"]
[Date "2020.04.28"]
[Round "4"]
[White "Gvetadze"]
[Black "Gennady_Kozlov"]
[Result "1-0"]
[WhiteElo "2366"]
[BlackElo "2566"]
[TimeControl "180+1"]
[EndTime "10:41:10 PDT"]
[Termination "Gvetadze won by resignation"]

1. Nf3 {[%clk 0:02:23.8]} 1... d5 {[%clk 0:02:56.3]} 2. g3 {[%clk 0:02:23.6]}
2... Bf5 {[%clk 0:02:56.1]} 3. Bg2 {[%clk 0:02:23.8]} 3... c6 {[%clk 0:02:56.5]}
4. O-O {[%clk 0:02:24.3]} 4... h6 {[%clk 0:02:56.6]} 5. d3 {[%clk 0:02:25]} 5...
e6 {[%clk 0:02:56.5]} 6. Nbd2 {[%clk 0:02:25.7]} 6... Nf6 {[%clk 0:02:56.8]} 7.
c4 {[%clk 0:02:26.4]} 7... Be7 {[%clk 0:02:55.9]} 8. b3 {[%clk 0:02:26.4]} 8...
O-O {[%clk 0:02:54.9]} 9. Bb2 {[%clk 0:02:26.6]} 9... Nbd7 {[%clk 0:02:55.4]}
10. Rc1 {[%clk 0:02:25.8]} 10... Bh7 {[%clk 0:02:55.3]} 11. Rc2 {[%clk
0:02:25.4]} 11... Qa5 {[%clk 0:02:54.6]} 12. Qa1 {[%clk 0:02:25]} 12... Rfd8
{[%clk 0:02:50.8]} 13. a3 {[%clk 0:02:23.7]} 13... Qb6 {[%clk 0:02:50]} 14. Ne5
{[%clk 0:02:09.1]} 14... Nxe5 {[%clk 0:02:49]} 15. Bxe5 {[%clk 0:02:07.6]} 15...
Rac8 {[%clk 0:02:49.7]} 16. b4 {[%clk 0:02:03.4]} 16... a5 {[%clk 0:02:48.6]}
17. c5 {[%clk 0:02:02.2]} 17... Qa6 {[%clk 0:02:48.2]} 18. Nb3 {[%clk
0:01:57.4]} 18... a4 {[%clk 0:02:43.6]} 19. Nd2 {[%clk 0:01:50.4]} 19... Ne8
{[%clk 0:02:35.6]} 20. f4 {[%clk 0:01:46]} 20... Bf6 {[%clk 0:02:31.4]} 21. Nf3
{[%clk 0:01:41]} 21... b6 {[%clk 0:02:21.8]} 22. cxb6 {[%clk 0:01:33.6]} 22...
Qxb6+ {[%clk 0:02:21.4]} 23. Kh1 {[%clk 0:01:31.4]} 23... c5 {[%clk 0:02:16.3]}
24. Rfc1 {[%clk 0:01:30.5]} 24... c4 {[%clk 0:02:14.5]} 25. Rc3 {[%clk
0:01:25.5]} 25... Bxe5 {[%clk 0:01:49.1]} 26. Nxe5 {[%clk 0:01:22.3]} 26... Qe3
{[%clk 0:01:40.9]} 27. dxc4 {[%clk 0:01:18.5]} 27... Qxe2 {[%clk 0:01:40.7]} 28.
cxd5 {[%clk 0:01:17.4]} 28... Rxc3 {[%clk 0:01:38.7]} 29. Qxc3 {[%clk
0:01:14.9]} 29... exd5 {[%clk 0:01:38.7]} 30. Re1 {[%clk 0:01:06.7]} 30... Qf2
{[%clk 0:01:25.7]} 31. Nc6 {[%clk 0:01:00.3]} 31... d4 {[%clk 0:01:23.6]} 32.
Qc1 {[%clk 0:00:57.6]} 32... Ra8 {[%clk 0:01:01.8]} 33. Ne7+ {[%clk 0:00:57]}
33... Kf8 {[%clk 0:01:02]} 34. Bxa8 {[%clk 0:00:56.8]} 34... d3 {[%clk
0:01:02.5]} 35. Qe3 {[%clk 0:00:48.9]} 35... Qxe3 {[%clk 0:00:55.8]} 36. Rxe3
{[%clk 0:00:44.2]} 36... d2 {[%clk 0:00:56.7]} 37. Bf3 {[%clk 0:00:42.7]} 37...
Nd6 {[%clk 0:00:56.6]} 38. Nd5 {[%clk 0:00:33.5]} 38... Be4 {[%clk 0:00:55.3]}
39. Nc3 {[%clk 0:00:30.9]} 39... Bc2 {[%clk 0:00:50.5]} 40. Bd1 {[%clk
0:00:28.2]} 40... Nc4 {[%clk 0:00:50.1]} 41. Rf3 {[%clk 0:00:20.4]} 41... Bb3
{[%clk 0:00:45]} 42. Bxb3 {[%clk 0:00:18.6]} 42... axb3 {[%clk 0:00:44.9]} 43.
Rd3 {[%clk 0:00:17.6]} 43... b2 {[%clk 0:00:44.3]} 44. Nb1 {[%clk 0:00:16.9]}
44... Ke7 {[%clk 0:00:41.2]} 45. b5 {[%clk 0:00:16.3]} 45... Ke6 {[%clk
0:00:40.9]} 46. b6 {[%clk 0:00:15.3]} 46... Nxb6 {[%clk 0:00:40.8]} 47. Rxd2
{[%clk 0:00:15.6]} 47... Nc4 {[%clk 0:00:41.7]} 48. Rc2 {[%clk 0:00:15.9]} 48...
Kd5 {[%clk 0:00:41.4]} 49. Kg1 {[%clk 0:00:14.7]} 49... Kd4 {[%clk 0:00:41.3]}
50. Kf2 {[%clk 0:00:13.6]} 50... Kd3 {[%clk 0:00:41.4]} 51. Rxc4 {[%clk
0:00:13.5]} 51... Kxc4 {[%clk 0:00:41.4]} 52. Ke2 {[%clk 0:00:13.9]} 52... Kb3
{[%clk 0:00:41.5]} 53. Kd2 {[%clk 0:00:14.3]} 53... f5 {[%clk 0:00:41.5]} 54.
Kd1 {[%clk 0:00:13.9]} 54... g6 {[%clk 0:00:38.7]} 55. Kd2 {[%clk 0:00:14.1]}
55... g5 {[%clk 0:00:34.9]} 56. Kd3 {[%clk 0:00:14.4]} 56... gxf4 {[%clk
0:00:33.5]} 57. gxf4 {[%clk 0:00:15.3]} 57... h5 {[%clk 0:00:33.8]} 58. h4
{[%clk 0:00:15.3]} 58... Ka4 {[%clk 0:00:32.3]} 59. Kc2 {[%clk 0:00:15.5]} 59...
Kb5 {[%clk 0:00:33.2]} 60. Kxb2 {[%clk 0:00:16]} 60... Kc4 {[%clk 0:00:34.1]}
61. a4 {[%clk 0:00:16.3]} 61... Kd4 {[%clk 0:00:35]} 62. a5 {[%clk 0:00:16.4]}
62... Ke4 {[%clk 0:00:35.9]} 63. a6 {[%clk 0:00:16.9]} 63... Kxf4 {[%clk
0:00:36.8]} 64. a7 {[%clk 0:00:17.6]} 64... Kg4 {[%clk 0:00:36.8]} 65. a8=Q
{[%clk 0:00:18.5]} 65... Kxh4 {[%clk 0:00:37.7]} 1-0

[Event "*** Titled Tuesday Blitz"]
[Site "Chess.com"]
[Date "2020.04.28"]
[Round "4"]
[White "HouseOfDurin"]
[Black "AnnaChessLook"]
[Result "0-1"]
[WhiteElo "2059"]
[BlackElo "2260"]
[TimeControl "180+1"]
[EndTime "10:41:10 PDT"]
[Termination "AnnaChessLook won on time"]

1. d4 {[%clk 0:03:00.9]} 1... Nf6 {[%clk 0:02:49]} 2. Bg5 {[%clk 0:03:01]} 2...
Ne4 {[%clk 0:02:42]} 3. h4 {[%clk 0:03:00.6]} 3... c5 {[%clk 0:02:40.4]} 4. dxc5
{[%clk 0:02:57.8]} 4... Nxc5 {[%clk 0:02:38.9]} 5. Nd2 {[%clk 0:02:45.2]} 5...
d5 {[%clk 0:02:31.8]} 6. e3 {[%clk 0:02:37.6]} 6... Nc6 {[%clk 0:02:30.1]} 7.
Nb3 {[%clk 0:02:16.4]} 7... Ne4 {[%clk 0:02:25.6]} 8. Bd3 {[%clk 0:02:06.8]}
8... Nxg5 {[%clk 0:02:24.4]} 9. hxg5 {[%clk 0:02:05.9]} 9... g6 {[%clk
0:02:24.4]} 10. f4 {[%clk 0:01:53.2]} 10... Bg7 {[%clk 0:02:23.2]} 11. c3 {[%clk
0:01:49.3]} 11... O-O {[%clk 0:02:19.8]} 12. Nf3 {[%clk 0:01:48.4]} 12... Bg4
{[%clk 0:02:17.3]} 13. Qc2 {[%clk 0:01:35.8]} 13... e5 {[%clk 0:02:15.3]} 14.
Rh4 {[%clk 0:01:20.3]} 14... Qc8 {[%clk 0:02:06.5]} 15. Nh2 {[%clk 0:00:53.7]}
15... Be6 {[%clk 0:02:00.6]} 16. Nc5 {[%clk 0:00:36.7]} 16... e4 {[%clk
0:01:59.4]} 17. Be2 {[%clk 0:00:35.3]} 17... b6 {[%clk 0:01:51.8]} 18. Nxe6
{[%clk 0:00:33]} 18... fxe6 {[%clk 0:01:52]} 19. O-O-O {[%clk 0:00:31.4]} 19...
b5 {[%clk 0:01:47.9]} 20. Bxb5 {[%clk 0:00:26.4]} 20... Rb8 {[%clk 0:01:47.1]}
21. Bxc6 {[%clk 0:00:18.6]} 21... Qxc6 {[%clk 0:01:48]} 22. Ng4 {[%clk
0:00:18.9]} 22... Qa6 {[%clk 0:01:45.2]} 23. Kb1 {[%clk 0:00:16.8]} 23... Rf7
{[%clk 0:01:41.7]} 24. Rdh1 {[%clk 0:00:15.9]} 24... Rfb7 {[%clk 0:01:40.3]} 25.
Nf6+ {[%clk 0:00:14.4]} 25... Bxf6 {[%clk 0:01:34.4]} 26. gxf6 {[%clk
0:00:15.3]} 26... Rxb2+ {[%clk 0:01:33.1]} 27. Qxb2 {[%clk 0:00:16.2]} 27...
Rxb2+ {[%clk 0:01:33.8]} 28. Kxb2 {[%clk 0:00:17.1]} 28... Qe2+ {[%clk
0:01:26.6]} 29. Kb3 {[%clk 0:00:16.5]} 29... Kf7 {[%clk 0:01:11.6]} 30. Rxh7+
{[%clk 0:00:13.2]} 30... Kxf6 {[%clk 0:01:11.8]} 31. Rxa7 {[%clk 0:00:10.2]}
31... Qxe3 {[%clk 0:01:05.1]} 32. Rhh7 {[%clk 0:00:09.7]} 32... Qb6+ {[%clk
0:01:00.5]} 33. Kc2 {[%clk 0:00:09.3]} 33... Kf5 {[%clk 0:00:59]} 34. Rhf7+
{[%clk 0:00:06.8]} 34... Kg4 {[%clk 0:00:58.4]} 35. Rae7 {[%clk 0:00:04.9]}
35... Qf2+ {[%clk 0:00:54.8]} 36. Kb3 {[%clk 0:00:04.6]} 36... e3 {[%clk
0:00:47.4]} 37. Rxe6 {[%clk 0:00:04.6]} 37... Kg3 {[%clk 0:00:31.2]} 38. Rfe7
{[%clk 0:00:04.9]} 38... Qxf4 {[%clk 0:00:21.4]} 39. Rxe3+ {[%clk 0:00:05.3]}
39... Kh2 {[%clk 0:00:21.8]} 40. g3 {[%clk 0:00:04.9]} 40... Qc4+ {[%clk
0:00:21.3]} 41. Kb2 {[%clk 0:00:04.3]} 41... Qb5+ {[%clk 0:00:20.5]} 42. Kc2
{[%clk 0:00:04.5]} 42... Qa4+ {[%clk 0:00:20.6]} 43. Kb2 {[%clk 0:00:04.1]}
43... Qb5+ {[%clk 0:00:20.5]} 44. Ka1 {[%clk 0:00:03.4]} 44... Qa4 {[%clk
0:00:20.6]} 45. Re1 {[%clk 0:00:02.5]} 45... Qc4 {[%clk 0:00:19.8]} 46. R7e3
{[%clk 0:00:02]} 46... Qc5 {[%clk 0:00:18.5]} 47. Kb2 {[%clk 0:00:01.6]} 47...
Kh3 {[%clk 0:00:17.8]} 0-1